[Event "*** Titled Tuesday 3|2 Blitz"]
[Site "Chess.com"]
[Date "2015.04.07"]
[Round "3"]
[White "darkknight123456"]
[Black "chesstatour"]
[Result "1-0"]
[WhiteElo "2052"]
[BlackElo "1948"]
[TimeControl "180+2"]
[EndTime "11:37:01 PDT"]
[Termination "darkknight123456 won by resignation"]

1. e4 {[%clk 0:03:01.9]} 1... c6 {[%clk 0:03:00]} 2. d4 {[%clk 0:03:02.2]} 2...
d5 {[%clk 0:03:00.4]} 3. Nc3 {[%clk 0:03:03.2]} 3... dxe4 {[%clk 0:02:55.1]} 4.
Nxe4 {[%clk 0:03:03.5]} 4... Nf6 {[%clk 0:02:55.9]} 5. Nxf6+ {[%clk 0:03:04.2]}
5... gxf6 {[%clk 0:02:57.8]} 6. Nf3 {[%clk 0:03:04.2]} 6... Bf5 {[%clk
0:02:57.5]} 7. Bd3 {[%clk 0:03:02.7]} 7... Bxd3 {[%clk 0:02:58]} 8. Qxd3 {[%clk
0:03:03.6]} 8... e6 {[%clk 0:02:59.3]} 9. O-O {[%clk 0:03:03.9]} 9... Bd6 {[%clk
0:02:54.2]} 10. c4 {[%clk 0:03:03.6]} 10... Qc7 {[%clk 0:02:51.8]} 11. h3 {[%clk
0:03:03.5]} 11... Nd7 {[%clk 0:02:51.5]} 12. d5 {[%clk 0:03:04]} 12... Ne5
{[%clk 0:02:24.2]} 13. Nxe5 {[%clk 0:02:53.5]} 13... Bxe5 {[%clk 0:02:26.1]} 14.
dxe6 {[%clk 0:02:49.7]} 14... fxe6 {[%clk 0:02:24.1]} 15. f4 {[%clk 0:02:24.4]}
15... Rd8 {[%clk 0:02:06.3]} 16. Qe2 {[%clk 0:02:24.5]} 16... Bd4+ {[%clk
0:02:03.6]} 17. Kh1 {[%clk 0:02:24.9]} 17... Qf7 {[%clk 0:01:33.1]} 18. Re1
{[%clk 0:02:09.2]} 18... O-O {[%clk 0:01:31.3]} 19. Be3 {[%clk 0:01:38.5]} 19...
e5 {[%clk 0:01:18.3]} 20. fxe5 {[%clk 0:01:17.4]} 20... fxe5 {[%clk 0:01:18.2]}
21. Bh6 {[%clk 0:01:10.6]} 21... Rfe8 {[%clk 0:01:15.2]} 22. Rad1 {[%clk
0:00:49.7]} 22... Qg6 {[%clk 0:01:12.3]} 23. Bc1 {[%clk 0:00:46.3]} 23... Kh8
{[%clk 0:01:07.7]} 24. b3 {[%clk 0:00:46.2]} 24... c5 {[%clk 0:01:04.1]} 25. a3
{[%clk 0:00:40.6]} 25... Qg7 {[%clk 0:00:43.1]} 26. Qe4 {[%clk 0:00:39.6]} 26...
b6 {[%clk 0:00:41.5]} 27. Rf1 {[%clk 0:00:40.2]} 27... Qg6 {[%clk 0:00:39.9]}
28. Qe2 {[%clk 0:00:36.4]} 28... e4 {[%clk 0:00:35.6]} 29. Bb2 {[%clk
0:00:27.1]} 29... Qg7 {[%clk 0:00:28.4]} 30. Bc1 {[%clk 0:00:27.8]} 30... Rd7
{[%clk 0:00:18.8]} 31. Rf4 {[%clk 0:00:27.8]} 31... Rde7 {[%clk 0:00:10.4]} 32.
Rdf1 {[%clk 0:00:26.7]} 32... e3 {[%clk 0:00:09]} 33. R1f3 {[%clk 0:00:17.6]}
33... h6 {[%clk 0:00:05.7]} 34. Rg4 {[%clk 0:00:18.4]} 34... Qe5 {[%clk
0:00:05]} 35. Rg6 {[%clk 0:00:15.1]} 35... Kh7 {[%clk 0:00:05.2]} 36. Rfg3
{[%clk 0:00:14.2]} 36... Qe4 {[%clk 0:00:05.2]} 37. R6g4 {[%clk 0:00:13.3]}
37... Qf5 {[%clk 0:00:05.7]} 38. Rf3 {[%clk 0:00:12.2]} 38... Qe5 {[%clk
0:00:06.2]} 39. Qc2+ {[%clk 0:00:10.8]} 39... Qe4 {[%clk 0:00:06.5]} 40. Rxe4
{[%clk 0:00:11.1]} 40... Rxe4 {[%clk 0:00:08.4]} 41. Qe2 {[%clk 0:00:12]} 41...
R4e7 {[%clk 0:00:06.6]} 42. g4 {[%clk 0:00:12.9]} 42... Re4 {[%clk 0:00:07.4]}
43. Kg2 {[%clk 0:00:14]} 43... R8e5 {[%clk 0:00:08.3]} 44. Rf7+ {[%clk
0:00:14.3]} 44... Kg6 {[%clk 0:00:09.6]} 45. Rxa7 {[%clk 0:00:14.7]} 45... h5
{[%clk 0:00:11]} 46. Rb7 {[%clk 0:00:13.2]} 46... Re6 {[%clk 0:00:10.6]} 47. Rd7
{[%clk 0:00:06.9]} 47... hxg4 {[%clk 0:00:10.9]} 48. hxg4 {[%clk 0:00:07.5]}
48... Kg5 {[%clk 0:00:12.3]} 49. Rd5+ {[%clk 0:00:05.9]} 49... Be5 {[%clk
0:00:10.6]} 50. Bxe3+ {[%clk 0:00:05.9]} 50... Kh4 {[%clk 0:00:10.6]} 51. Bf2+
{[%clk 0:00:06.3]} 51... Kg5 {[%clk 0:00:11.3]} 52. Qxe4 {[%clk 0:00:07.4]} 1-0

[Event "*** Titled Tuesday 3|2 Blitz"]
[Site "Chess.com"]
[Date "2015.04.07"]
[Round "3"]
[White "Ar4uha"]
[Black "pKiLz5Rn9b"]
[Result "1/2-1/2"]
[WhiteElo "2460"]
[BlackElo "2319"]
[TimeControl "180+2"]
[EndTime "11:37:15 PDT"]
[Termination "Game drawn by agreement"]

1. e4 {[%clk 0:02:49.1]} 1... e6 {[%clk 0:03:00.3]} 2. c4 {[%clk 0:02:49.8]}
2... d5 {[%clk 0:02:59.3]} 3. exd5 {[%clk 0:02:51.1]} 3... exd5 {[%clk
0:03:00.2]} 4. cxd5 {[%clk 0:02:52.6]} 4... Nf6 {[%clk 0:03:01.4]} 5. Bb5+
{[%clk 0:02:53.5]} 5... Nbd7 {[%clk 0:02:59.4]} 6. Nc3 {[%clk 0:02:53.7]} 6...
Bd6 {[%clk 0:03:00]} 7. d4 {[%clk 0:02:54.4]} 7... O-O {[%clk 0:03:01]} 8. Nge2
{[%clk 0:02:55.9]} 8... Nb6 {[%clk 0:03:01.4]} 9. O-O {[%clk 0:02:55.6]} 9...
Nbxd5 {[%clk 0:03:02.3]} 10. Ng3 {[%clk 0:02:44.7]} 10... c6 {[%clk 0:03:02.3]}
11. Bd3 {[%clk 0:02:45.3]} 11... Bg4 {[%clk 0:02:51.3]} 12. f3 {[%clk
0:02:42.9]} 12... Be6 {[%clk 0:02:50]} 13. a3 {[%clk 0:02:43.3]} 13... Qb6
{[%clk 0:02:45.8]} 14. Bc2 {[%clk 0:02:38]} 14... Rad8 {[%clk 0:02:43.5]} 15.
Qd3 {[%clk 0:02:28.6]} 15... Bxg3 {[%clk 0:02:26]} 16. hxg3 {[%clk 0:02:20.3]}
16... Ne7 {[%clk 0:02:24.8]} 17. Na4 {[%clk 0:01:33.4]} 17... Qxd4+ {[%clk
0:01:54.8]} 18. Qxd4 {[%clk 0:01:34.4]} 18... Rxd4 {[%clk 0:01:56.4]} 19. Be3
{[%clk 0:01:36.1]} 19... Rdd8 {[%clk 0:01:47.9]} 20. Bxa7 {[%clk 0:01:36.9]}
20... Bf5 {[%clk 0:01:44.4]} 21. Bb3 {[%clk 0:01:27.9]} 21... Ned5 {[%clk
0:01:40.9]} 22. Bc5 {[%clk 0:01:26]} 22... Rfe8 {[%clk 0:01:40.9]} 23. Rfe1
{[%clk 0:01:26.7]} 23... Be6 {[%clk 0:01:36.7]} 24. Bc2 {[%clk 0:01:23.3]} 24...
b5 {[%clk 0:01:33.8]} 25. Nb6 {[%clk 0:01:22.5]} 25... Nxb6 {[%clk 0:01:33]} 26.
Bxb6 {[%clk 0:01:24.4]} 26... Rd2 {[%clk 0:01:33.7]} 27. Rac1 {[%clk 0:01:23.3]}
27... Nd5 {[%clk 0:01:04]} 28. Ba5 {[%clk 0:01:11.6]} 28... Rd4 {[%clk
0:01:03.4]} 29. Be4 {[%clk 0:01:07.2]} 29... Rc8 {[%clk 0:00:54.7]} 30. Red1
{[%clk 0:00:56.5]} 30... Rxd1+ {[%clk 0:00:51.1]} 31. Rxd1 {[%clk 0:00:57.7]}
31... f5 {[%clk 0:00:48.1]} 32. Bb1 {[%clk 0:00:54.3]} 32... Kf7 {[%clk
0:00:48.9]} 33. Kf2 {[%clk 0:00:55.2]} 33... g6 {[%clk 0:00:49.3]} 34. Rc1
{[%clk 0:00:54.1]} 34... Ne7 {[%clk 0:00:47.1]} 35. Bd2 {[%clk 0:00:53.6]} 35...
Bc4 {[%clk 0:00:45.3]} 36. Bg5 {[%clk 0:00:53.1]} 36... Nd5 {[%clk 0:00:40.4]}
37. Bc2 {[%clk 0:00:52.3]} 37... Nb6 {[%clk 0:00:41.2]} 38. g4 {[%clk
0:00:43.6]} 38... fxg4 {[%clk 0:00:41.1]} 39. fxg4 {[%clk 0:00:44.9]} 39... Be6
{[%clk 0:00:37.5]} 40. Kg3 {[%clk 0:00:42.8]} 40... Nc4 {[%clk 0:00:33.3]} 41.
Rh1 {[%clk 0:00:42.1]} 41... Kg8 {[%clk 0:00:33.6]} 42. Bc1 {[%clk 0:00:42.3]}
42... Bd5 {[%clk 0:00:30.6]} 43. b3 {[%clk 0:00:39.4]} 43... Nd6 {[%clk
0:00:30.8]} 44. Bb2 {[%clk 0:00:38.6]} 44... Ne4+ {[%clk 0:00:30.3]} 45. Kf4
{[%clk 0:00:34]} 45... Rf8+ {[%clk 0:00:29.1]} 46. Ke3 {[%clk 0:00:35.4]} 46...
Re8 {[%clk 0:00:25.8]} 47. Kd4 {[%clk 0:00:36]} 47... Ng3 {[%clk 0:00:21.9]} 48.
Rh3 {[%clk 0:00:29.3]} 48... Re2 {[%clk 0:00:21.3]} 49. Rxg3 {[%clk 0:00:15.3]}
49... Rxc2 {[%clk 0:00:22.1]} 50. Ba1 {[%clk 0:00:14.9]} 50... Rxg2 {[%clk
0:00:20.5]} 51. Rxg2 {[%clk 0:00:15.8]} 51... Bxg2 {[%clk 0:00:21.6]} 52. g5
{[%clk 0:00:17.4]} 52... Kf7 {[%clk 0:00:21.2]} 53. Ke5 {[%clk 0:00:17.5]} 53...
Bd5 {[%clk 0:00:21.9]} 54. b4 {[%clk 0:00:18.7]} 54... Ke7 {[%clk 0:00:23.3]}
55. Bd4 {[%clk 0:00:19.3]} 55... Kd7 {[%clk 0:00:19.7]} 1/2-1/2

[Event "*** Titled Tuesday 3|2 Blitz"]
[Site "Chess.com"]
[Date "2015.04.07"]
[Round "3"]
[White "1stSecond"]
[Black "megarompa"]
[Result "0-1"]
[WhiteElo "2385"]
[BlackElo "2697"]
[TimeControl "180+2"]
[EndTime "11:37:57 PDT"]
[Termination "megarompa won by resignation"]

1. d4 {[%clk 0:03:01.1]} 1... d5 {[%clk 0:02:59.9]} 2. c4 {[%clk 0:03:02.2]}
2... e5 {[%clk 0:03:01.2]} 3. dxe5 {[%clk 0:03:02.7]} 3... d4 {[%clk 0:03:02.5]}
4. Nf3 {[%clk 0:03:04]} 4... Nc6 {[%clk 0:03:03.3]} 5. g3 {[%clk 0:03:04.1]}
5... f6 {[%clk 0:03:02.3]} 6. e6 {[%clk 0:03:00.7]} 6... Bxe6 {[%clk 0:03:00.4]}
7. Nbd2 {[%clk 0:03:01.8]} 7... Bc5 {[%clk 0:02:51.6]} 8. Bg2 {[%clk 0:03:01.4]}
8... Nge7 {[%clk 0:02:50.8]} 9. O-O {[%clk 0:02:55.2]} 9... Bb6 {[%clk
0:02:51.4]} 10. Ne1 {[%clk 0:02:53.5]} 10... O-O {[%clk 0:02:52.2]} 11. Nd3
{[%clk 0:02:54.1]} 11... a5 {[%clk 0:02:50.1]} 12. a3 {[%clk 0:02:49.3]} 12...
a4 {[%clk 0:02:50.2]} 13. Rb1 {[%clk 0:02:35]} 13... Ra5 {[%clk 0:02:47.6]} 14.
b4 {[%clk 0:02:32.8]} 14... axb3 {[%clk 0:02:48.6]} 15. Nxb3 {[%clk 0:02:33.3]}
15... Ra8 {[%clk 0:02:37.3]} 16. Nbc5 {[%clk 0:02:23.8]} 16... Bc8 {[%clk
0:02:33.7]} 17. Na4 {[%clk 0:02:14.7]} 17... Ba5 {[%clk 0:02:31.6]} 18. c5
{[%clk 0:02:13.8]} 18... Kh8 {[%clk 0:02:26.6]} 19. Bb2 {[%clk 0:02:08.4]} 19...
Bf5 {[%clk 0:02:25.1]} 20. Rc1 {[%clk 0:02:06.5]} 20... Qd7 {[%clk 0:02:23]} 21.
Qb3 {[%clk 0:01:55.9]} 21... Rab8 {[%clk 0:02:18.9]} 22. Rfd1 {[%clk 0:01:54.8]}
22... Bg4 {[%clk 0:02:18.9]} 23. Qc2 {[%clk 0:01:47.2]} 23... Rfe8 {[%clk
0:02:19.1]} 24. Nf4 {[%clk 0:01:38.2]} 24... Bf5 {[%clk 0:02:08.6]} 25. Qc4
{[%clk 0:01:37.1]} 25... Rbd8 {[%clk 0:02:06.4]} 26. e3 {[%clk 0:01:34.6]} 26...
d3 {[%clk 0:02:05]} 27. Nc3 {[%clk 0:01:35.3]} 27... d2 {[%clk 0:02:04.5]} 28.
Ra1 {[%clk 0:01:35.9]} 28... Bc2 {[%clk 0:01:58.8]} 29. Ncd5 {[%clk 0:01:32.6]}
29... Bxd1 {[%clk 0:01:56.8]} 30. Rxd1 {[%clk 0:01:29.1]} 30... Nxd5 {[%clk
0:01:58.5]} 31. Nxd5 {[%clk 0:01:25]} 31... Ne5 {[%clk 0:01:56.9]} 32. Qc2
{[%clk 0:01:21.5]} 32... c6 {[%clk 0:01:55.6]} 33. Nb4 {[%clk 0:01:18.3]} 33...
Bxb4 {[%clk 0:01:56.9]} 34. axb4 {[%clk 0:01:18.8]} 34... Qe7 {[%clk 0:01:49.2]}
35. h3 {[%clk 0:01:16.1]} 35... Rd7 {[%clk 0:01:42.3]} 36. Bd4 {[%clk
0:01:16.5]} 36... Red8 {[%clk 0:01:39.4]} 37. Rxd2 {[%clk 0:01:17.4]} 37... Qe6
{[%clk 0:01:39.9]} 38. Kh2 {[%clk 0:01:17.3]} 38... Ra8 {[%clk 0:01:40.2]} 39.
Be4 {[%clk 0:01:14.3]} 39... Re8 {[%clk 0:01:38.1]} 40. Bf5 {[%clk 0:01:10.4]}
40... Qe7 {[%clk 0:01:24.9]} 41. Bxd7 {[%clk 0:01:09.6]} 41... Nf3+ {[%clk
0:01:25.4]} 42. Kh1 {[%clk 0:00:39.3]} 42... Qxd7 {[%clk 0:01:25.7]} 43. g4
{[%clk 0:00:39.8]} 43... Nxd2 {[%clk 0:01:20.1]} 44. Qxd2 {[%clk 0:00:40.6]}
44... Qd5+ {[%clk 0:01:21.8]} 45. Kh2 {[%clk 0:00:41.1]} 45... Qf3 {[%clk
0:01:22.6]} 46. Qb2 {[%clk 0:00:38.6]} 46... h5 {[%clk 0:01:19.3]} 47. g5 {[%clk
0:00:29.1]} 47... fxg5 {[%clk 0:01:03.5]} 48. Bxg7+ {[%clk 0:00:30]} 48... Kh7
{[%clk 0:01:04.7]} 49. Be5 {[%clk 0:00:20.9]} 49... Kg6 {[%clk 0:01:03.2]} 50.
Kg1 {[%clk 0:00:20]} 50... Qd1+ {[%clk 0:01:02.4]} 51. Kh2 {[%clk 0:00:19.5]}
51... Re6 {[%clk 0:00:55.2]} 52. Bh8 {[%clk 0:00:20.1]} 52... Qd7 {[%clk
0:00:46]} 53. Qc2+ {[%clk 0:00:21.5]} 53... Kh6 {[%clk 0:00:47.2]} 54. Qf5
{[%clk 0:00:22.3]} 54... Qe7 {[%clk 0:00:33.9]} 55. Bd4 {[%clk 0:00:20.4]} 55...
Rg6 {[%clk 0:00:31.1]} 56. Kg3 {[%clk 0:00:18.6]} 56... h4+ {[%clk 0:00:29.3]}
57. Kg4 {[%clk 0:00:19.5]} 57... Qe6 {[%clk 0:00:29.6]} 58. Be5 {[%clk
0:00:18.4]} 58... Qxf5+ {[%clk 0:00:30]} 59. Kxf5 {[%clk 0:00:19.9]} 59... g4
{[%clk 0:00:31.6]} 60. hxg4 {[%clk 0:00:20.4]} 60... Rg5+ {[%clk 0:00:32.6]} 61.
Kf6 {[%clk 0:00:20.8]} 61... Rxe5 {[%clk 0:00:25.1]} 62. Kxe5 {[%clk 0:00:22.1]}
62... h3 {[%clk 0:00:26.7]} 63. Kf6 {[%clk 0:00:23.4]} 63... h2 {[%clk
0:00:28.3]} 64. g5+ {[%clk 0:00:24]} 64... Kh7 {[%clk 0:00:26.3]} 65. g6+ {[%clk
0:00:25.9]} 65... Kg8 {[%clk 0:00:27.3]} 66. f4 {[%clk 0:00:26.3]} 66... h1=Q
{[%clk 0:00:29.2]} 67. Kf5 {[%clk 0:00:26.9]} 67... Qd5+ {[%clk 0:00:29.7]} 68.
Kg4 {[%clk 0:00:28.2]} 68... Kg7 {[%clk 0:00:31.6]} 69. f5 {[%clk 0:00:28.6]}
69... Qe4+ {[%clk 0:00:31.8]} 70. Kg5 {[%clk 0:00:29.9]} 70... Qxe3+ {[%clk
0:00:33.7]} 0-1

[Event "*** Titled Tuesday 3|2 Blitz"]
[Site "Chess.com"]
[Date "2015.04.07"]
[Round "3"]
[White "petrpalachev"]
[Black "Daniel_Fridman"]
[Result "0-1"]
[WhiteElo "2434"]
[BlackElo "2636"]
[TimeControl "180+2"]
[EndTime "11:38:10 PDT"]
[Termination "Daniel_Fridman won by checkmate"]

1. d4 {[%clk 0:03:01.9]} 1... Nf6 {[%clk 0:02:59]} 2. c4 {[%clk 0:03:01.6]} 2...
e6 {[%clk 0:03:00.6]} 3. Nc3 {[%clk 0:03:02.4]} 3... Bb4 {[%clk 0:03:01]} 4. e3
{[%clk 0:03:03.9]} 4... c5 {[%clk 0:03:00.9]} 5. Nf3 {[%clk 0:03:03]} 5... cxd4
{[%clk 0:03:00.9]} 6. exd4 {[%clk 0:03:03.6]} 6... d5 {[%clk 0:03:02]} 7. Bd3
{[%clk 0:03:03.9]} 7... dxc4 {[%clk 0:03:00.6]} 8. Bxc4 {[%clk 0:03:04.9]} 8...
O-O {[%clk 0:03:02.2]} 9. O-O {[%clk 0:03:06.4]} 9... b6 {[%clk 0:03:03.4]} 10.
Bg5 {[%clk 0:03:04.8]} 10... Bb7 {[%clk 0:03:04.1]} 11. Qe2 {[%clk 0:03:05.7]}
11... Bxc3 {[%clk 0:03:03.4]} 12. bxc3 {[%clk 0:03:06.5]} 12... Nbd7 {[%clk
0:03:05]} 13. Nd2 {[%clk 0:03:07.2]} 13... Qc7 {[%clk 0:03:04.6]} 14. Rac1
{[%clk 0:03:05.5]} 14... Rfe8 {[%clk 0:03:01.4]} 15. Rfe1 {[%clk 0:03:03.7]}
15... a6 {[%clk 0:02:48.4]} 16. Bd3 {[%clk 0:02:53.6]} 16... h6 {[%clk
0:02:48.3]} 17. Bh4 {[%clk 0:02:51.6]} 17... b5 {[%clk 0:02:43]} 18. f3 {[%clk
0:02:46.5]} 18... Nd5 {[%clk 0:02:35.6]} 19. Bg3 {[%clk 0:02:30.5]} 19... Qb6
{[%clk 0:02:35.6]} 20. Qf2 {[%clk 0:02:16.4]} 20... N7f6 {[%clk 0:01:52.7]} 21.
Be5 {[%clk 0:02:06.6]} 21... Qd8 {[%clk 0:01:23.7]} 22. Ne4 {[%clk 0:01:49]}
22... Qe7 {[%clk 0:01:24.7]} 23. Nc5 {[%clk 0:01:43.5]} 23... Rac8 {[%clk
0:01:21.6]} 24. Qb2 {[%clk 0:01:38.2]} 24... Nd7 {[%clk 0:01:19.3]} 25. Nxb7
{[%clk 0:01:11.9]} 25... Nxe5 {[%clk 0:01:20.1]} 26. Rxe5 {[%clk 0:01:11.8]}
26... Qxb7 {[%clk 0:01:20.6]} 27. c4 {[%clk 0:01:13.4]} 27... Nf6 {[%clk
0:01:00.9]} 28. cxb5 {[%clk 0:01:12.9]} 28... Rxc1+ {[%clk 0:01:02.2]} 29. Qxc1
{[%clk 0:01:13.8]} 29... axb5 {[%clk 0:01:03.7]} 30. Bxb5 {[%clk 0:01:08.7]}
30... Rd8 {[%clk 0:01:03]} 31. Qb2 {[%clk 0:00:29.8]} 31... Qa7 {[%clk
0:00:57.7]} 32. Rc5 {[%clk 0:00:25.8]} 32... e5 {[%clk 0:00:56.4]} 33. Rxe5
{[%clk 0:00:15]} 33... Rxd4 {[%clk 0:00:56.2]} 34. Qf2 {[%clk 0:00:13.6]} 34...
Rd1+ {[%clk 0:00:47.2]} 35. Bf1 {[%clk 0:00:14]} 35... Qa3 {[%clk 0:00:45]} 36.
Re1 {[%clk 0:00:13.1]} 36... Rxe1 {[%clk 0:00:45.5]} 37. Qxe1 {[%clk 0:00:15]}
37... Qxa2 {[%clk 0:00:47]} 38. Qf2 {[%clk 0:00:16.9]} 38... Qa3 {[%clk
0:00:47.6]} 39. g3 {[%clk 0:00:17.9]} 39... g5 {[%clk 0:00:47]} 40. Kg2 {[%clk
0:00:18.8]} 40... Kg7 {[%clk 0:00:47.5]} 41. Qd2 {[%clk 0:00:19.8]} 41... Qc5
{[%clk 0:00:45.1]} 42. Qf2 {[%clk 0:00:20.6]} 42... Qc3 {[%clk 0:00:44.5]} 43.
Qe2 {[%clk 0:00:20.1]} 43... Nd5 {[%clk 0:00:44.8]} 44. Kf2 {[%clk 0:00:14.2]}
44... Qd4+ {[%clk 0:00:45.3]} 45. Kg2 {[%clk 0:00:15.5]} 45... Ne3+ {[%clk
0:00:46.4]} 46. Kh1 {[%clk 0:00:16]} 46... Qc3 {[%clk 0:00:36.6]} 47. Kg1 {[%clk
0:00:15.3]} 47... Qc5 {[%clk 0:00:32.2]} 48. Qf2 {[%clk 0:00:14.8]} 48... Qc1
{[%clk 0:00:33]} 49. Qe2 {[%clk 0:00:15.2]} 49... h5 {[%clk 0:00:34.2]} 50. Kf2
{[%clk 0:00:15.3]} 50... Nd1+ {[%clk 0:00:33.4]} 51. Kg2 {[%clk 0:00:13.6]}
51... Kf6 {[%clk 0:00:31.3]} 52. Qa6+ {[%clk 0:00:12.2]} 52... Kg7 {[%clk
0:00:31.3]} 53. Qe2 {[%clk 0:00:13.3]} 53... Ne3+ {[%clk 0:00:27.4]} 54. Kf2
{[%clk 0:00:14.4]} 54... Nd1+ {[%clk 0:00:24.5]} 55. Kg2 {[%clk 0:00:15.5]}
55... Qa1 {[%clk 0:00:25.4]} 56. Qd2 {[%clk 0:00:14.1]} 56... f6 {[%clk
0:00:21.8]} 57. Be2 {[%clk 0:00:13.6]} 57... Nc3 {[%clk 0:00:20.9]} 58. Qd7+
{[%clk 0:00:11.8]} 58... Kh6 {[%clk 0:00:19.1]} 59. Bd3 {[%clk 0:00:09.2]} 59...
Qa2+ {[%clk 0:00:20.3]} 60. Kh3 {[%clk 0:00:09]} 60... Qg8 {[%clk 0:00:20.8]}
61. Qc6 {[%clk 0:00:06.1]} 61... g4+ {[%clk 0:00:19.2]} 62. Kg2 {[%clk
0:00:06.7]} 62... Qa2+ {[%clk 0:00:19.2]} 63. Kg1 {[%clk 0:00:03.9]} 63... Qa1+
{[%clk 0:00:19.4]} 64. Kf2 {[%clk 0:00:04.2]} 64... Qb2+ {[%clk 0:00:18.8]} 65.
Ke3 {[%clk 0:00:04.9]} 65... Nd1+ {[%clk 0:00:20]} 66. Ke4 {[%clk 0:00:04.4]}
66... Qe5# {[%clk 0:00:21.9]} 0-1

[Event "*** Titled Tuesday 3|2 Blitz"]
[Site "Chess.com"]
[Date "2015.04.07"]
[Round "3"]
[White "facu57"]
[Black "SCIM"]
[Result "0-1"]
[WhiteElo "2118"]
[BlackElo "2079"]
[TimeControl "180+2"]
[EndTime "11:38:39 PDT"]
[Termination "SCIM won by resignation"]

1. e4 {[%clk 0:02:42.4]} 1... g6 {[%clk 0:03:00.5]} 2. Nc3 {[%clk 0:02:42.8]}
2... Bg7 {[%clk 0:03:02]} 3. g3 {[%clk 0:02:43.9]} 3... d6 {[%clk 0:03:02.4]} 4.
Bg2 {[%clk 0:02:45]} 4... Nf6 {[%clk 0:03:03.1]} 5. d3 {[%clk 0:02:46]} 5... O-O
{[%clk 0:03:02.8]} 6. f4 {[%clk 0:02:46.5]} 6... e5 {[%clk 0:03:02.9]} 7. Nf3
{[%clk 0:02:47.4]} 7... exf4 {[%clk 0:03:03.3]} 8. Bxf4 {[%clk 0:02:45.6]} 8...
Nc6 {[%clk 0:02:58.1]} 9. O-O {[%clk 0:02:46.5]} 9... Nh5 {[%clk 0:02:51.5]} 10.
Be3 {[%clk 0:02:46.8]} 10... Bg4 {[%clk 0:02:41.3]} 11. Qd2 {[%clk 0:02:45.7]}
11... Re8 {[%clk 0:02:37.4]} 12. Rae1 {[%clk 0:02:41.6]} 12... Ne5 {[%clk
0:02:31.1]} 13. Nxe5 {[%clk 0:02:37.2]} 13... dxe5 {[%clk 0:02:28.9]} 14. Bh6
{[%clk 0:02:37]} 14... Be6 {[%clk 0:02:14.4]} 15. Be3 {[%clk 0:02:32.2]} 15...
c6 {[%clk 0:02:10.5]} 16. Bf3 {[%clk 0:02:32.7]} 16... Nf6 {[%clk 0:02:04]} 17.
a3 {[%clk 0:02:33.6]} 17... Ng4 {[%clk 0:01:58.5]} 18. Bxg4 {[%clk 0:02:24.8]}
18... Bxg4 {[%clk 0:02:00.4]} 19. Qf2 {[%clk 0:02:25.1]} 19... Qd7 {[%clk
0:01:44.5]} 20. Qd2 {[%clk 0:02:25.1]} 20... Be6 {[%clk 0:01:37]} 21. Bh6 {[%clk
0:02:23.6]} 21... Bh8 {[%clk 0:01:33]} 22. Bg5 {[%clk 0:02:21.2]} 22... b5
{[%clk 0:01:28]} 23. Bf6 {[%clk 0:02:20.4]} 23... Bxf6 {[%clk 0:01:25.6]} 24.
Rxf6 {[%clk 0:02:20.2]} 24... Qd4+ {[%clk 0:01:22.1]} 25. Qf2 {[%clk 0:02:20.7]}
25... Qxf2+ {[%clk 0:01:21.4]} 26. Rxf2 {[%clk 0:02:20.2]} 26... a5 {[%clk
0:01:21.1]} 27. Nd1 {[%clk 0:02:20.3]} 27... b4 {[%clk 0:01:15.8]} 28. a4 {[%clk
0:02:07.3]} 28... b3 {[%clk 0:01:15.4]} 29. c4 {[%clk 0:02:07.9]} 29... Red8
{[%clk 0:01:12.2]} 30. Re3 {[%clk 0:02:08.4]} 30... Bxc4 {[%clk 0:01:11.1]} 31.
Rd2 {[%clk 0:02:06.4]} 31... Be6 {[%clk 0:01:10.6]} 32. Nc3 {[%clk 0:02:06.6]}
32... Rd4 {[%clk 0:01:10.9]} 33. Kf2 {[%clk 0:02:05.4]} 33... Rad8 {[%clk
0:01:10.2]} 34. Ke2 {[%clk 0:01:54]} 34... Kg7 {[%clk 0:01:09.5]} 35. Kf2 {[%clk
0:01:44]} 35... c5 {[%clk 0:01:07.3]} 36. h4 {[%clk 0:01:32.3]} 36... h6 {[%clk
0:01:05.8]} 37. Ke2 {[%clk 0:01:27.8]} 37... c4 {[%clk 0:01:04.7]} 38. Nb5
{[%clk 0:01:23.2]} 38... cxd3+ {[%clk 0:01:01.5]} 39. Kf2 {[%clk 0:01:24.3]}
39... Rxa4 {[%clk 0:00:49]} 40. Na3 {[%clk 0:01:20.4]} 40... Rad4 {[%clk
0:00:44.8]} 41. Re1 {[%clk 0:01:20.6]} 41... Rc8 {[%clk 0:00:42.3]} 42. Ke3
{[%clk 0:01:21.4]} 42... Rcd8 {[%clk 0:00:37.5]} 43. Rc1 {[%clk 0:01:20.9]}
43... f5 {[%clk 0:00:33.1]} 44. exf5 {[%clk 0:01:21.3]} 44... gxf5 {[%clk
0:00:32.9]} 45. Rc5 {[%clk 0:01:22.8]} 45... Kf6 {[%clk 0:00:32.6]} 46. Rxa5
{[%clk 0:01:22.9]} 46... f4+ {[%clk 0:00:29.4]} 47. gxf4 {[%clk 0:01:23.9]}
47... exf4+ {[%clk 0:00:29.9]} 48. Kf2 {[%clk 0:01:23.6]} 48... Bg4 {[%clk
0:00:24.3]} 49. Ra6+ {[%clk 0:01:24.6]} 49... R8d6 {[%clk 0:00:23.6]} 50. Ra8
{[%clk 0:01:11.9]} 50... Rd8 {[%clk 0:00:21.5]} 51. Ra6+ {[%clk 0:01:10.9]}
51... R4d6 {[%clk 0:00:22.9]} 52. Ra4 {[%clk 0:01:08.5]} 52... Kf5 {[%clk
0:00:22.2]} 53. Nb5 {[%clk 0:01:08.9]} 53... Rd5 {[%clk 0:00:22.5]} 54. Nc3
{[%clk 0:01:08.6]} 54... Re5 {[%clk 0:00:22.1]} 55. Rb4 {[%clk 0:01:06.4]} 55...
Be2 {[%clk 0:00:20.8]} 56. Rxb3 {[%clk 0:01:05]} 56... Rg8 {[%clk 0:00:21.6]}
57. Rb7 {[%clk 0:01:00.1]} 57... f3 {[%clk 0:00:21.7]} 58. Rf7+ {[%clk
0:00:55.8]} 58... Ke6 {[%clk 0:00:21.6]} 59. Rxf3 {[%clk 0:00:56.6]} 59... Bxf3
{[%clk 0:00:23.1]} 60. Kxf3 {[%clk 0:00:58.5]} 60... Rf8+ {[%clk 0:00:24.2]} 61.
Kg2 {[%clk 0:00:58.4]} 61... Re3 {[%clk 0:00:24.5]} 62. Nb5 {[%clk 0:00:49.1]}
62... Ke5 {[%clk 0:00:20.9]} 63. Na3 {[%clk 0:00:47.3]} 63... Re2+ {[%clk
0:00:20.6]} 64. Kg3 {[%clk 0:00:42.5]} 64... Rxd2 {[%clk 0:00:20.3]} 65. Nc4+
{[%clk 0:00:43.9]} 65... Ke4 {[%clk 0:00:21]} 66. Nxd2+ {[%clk 0:00:45.8]} 66...
Ke3 {[%clk 0:00:22.1]} 67. Nc4+ {[%clk 0:00:47]} 67... Ke2 {[%clk 0:00:23.3]}
68. b4 {[%clk 0:00:47.1]} 68... Rc8 {[%clk 0:00:23.5]} 69. Nb2 {[%clk
0:00:46.4]} 69... Rb8 {[%clk 0:00:24.3]} 70. Nxd3 {[%clk 0:00:40.7]} 70... Kxd3
{[%clk 0:00:24.2]} 71. Kg4 {[%clk 0:00:42.6]} 71... Rxb4+ {[%clk 0:00:20.4]} 72.
Kh5 {[%clk 0:00:44.5]} 72... Ke3 {[%clk 0:00:21.4]} 73. Kxh6 {[%clk 0:00:45.5]}
73... Rxh4+ {[%clk 0:00:21.9]} 0-1